fUST/lending_fUST_20250926
["ID","MTS","AMOUNT","RATE_DAILY","PERIOD"]
[387705904,1758817406525,-151.0,0.00041231,33]
[387705905,1758817406551,-350.0,0.00041231,33]
[387705906,1758817406577,-500.0,0.00041231,33]
[387705907,1758817406603,-250.0,0.00041336,37]
[387705908,1758817406629,-200.0,0.00041336,37]
[387705909,1758817406654,-151.0,0.00041336,37]
[387705910,1758817406679,-350.0,0.00041336,37]
[387705911,1758817406705,-500.0,0.00041336,37]
[387705912,1758817406732,-829.79673169,0.00041337,37]
[387705913,1758817406757,-195.43524413,0.00041369,120]
[387705914,1758817406783,-1007.69,0.00041369,120]
[387705915,1758817406807,-457.43233862,0.0004144,60]
[387705916,1758817406832,-600.0,0.00041618,60]
[387705917,1758817406858,-1007.69,0.00041643,120]
[387705918,1758817406884,-390.4368942,0.00041644,30]
[387705919,1758817406909,-390.4368942,0.00041644,30]
[387705920,1758817406934,-390.4368942,0.00041644,30]
[387705921,1758817406959,-390.4368942,0.00041644,30]
[387705922,1758817406985,-390.4368942,0.00041644,30]
[387705923,1758817407010,-236.7111116,0.00041644,30]
[387705924,1758817407038,-390.4368942,0.00041644,30]
[387705925,1758817407064,-219.0,0.00041694,120]
[387705926,1758817407090,-153.0,0.000417,120]
[387705927,1758817407116,-170.23956236,0.0004173,120]
[387705928,1758817407142,-178865.74855538,0.000419,120]
[387705929,1758817407168,-1007.69,0.00041917,120]
[387705930,1758817407194,-250.0,0.00041986,60]
[387705931,1758817407220,-200.0,0.00041986,60]
[387705932,1758817407246,-151.0,0.00041986,60]
[387705933,1758817407272,-350.0,0.00041986,60]
[387705934,1758817407299,-500.0,0.00041986,60]
[387705935,1758817407326,-151.0,0.00041986,60]
[387705936,1758817407351,-1081.9,0.00042,30]
[387705937,1758817407376,-875.0,0.00042,120]
[387705938,1758817407401,-100000.0,0.00042,30]
[387705939,1758817407425,-160.0,0.00042,120]
[387705940,1758817407450,-160.0,0.00042,120]
[387705941,1758817407476,-160.0,0.00042,30]
[387705942,1758817407500,-600.0,0.00042166,60]
[387705943,1758817407527,-1007.69,0.00042191,120]
[387705944,1758817407551,-308.0576652,0.00042329,30]
[387705945,1758817407576,-593.2553122,0.00042329,30]
[387705946,1758817407600,-189.0537352,0.00042329,30]
[387705947,1758817407626,-308.1716357,0.00042329,30]
[387705948,1758817407651,-189.0537352,0.00042329,30]
[387705949,1758817407676,-670.81,0.00042329,30]
[387705950,1758817407701,-189.0537352,0.00042329,30]
[387705951,1758817407725,-189.0537352,0.00042329,30]
[387705952,1758817407749,-170.23956236,0.0004234,120]
[387705953,1758817407773,-250.0,0.00042346,120]
[387705954,1758817407799,-200.0,0.00042346,120]
[387705955,1758817407823,-239.48459166,0.00042346,120]
[387705956,1758817407847,-151.0,0.00042346,120]
[387705957,1758817407874,-350.0,0.00042346,120]
[387705958,1758817407904,-500.0,0.00042346,120]
[387705959,1758817408146,-151.0,0.00042346,120]
[387705960,1758817408171,-11584.59219742,0.00042346,120]
[387705961,1758817408198,-151.0,0.00042346,120]
[387705962,1758817408224,-219.0,0.00042347,120]
[387705963,1758817408250,-250.0,0.000424,30]
[387705964,1758817408275,-250.0,0.000424,30]
[387705965,1758817408300,-250.0,0.000424,30]
[387705966,1758817408324,-250.0,0.000424,30]
[387705967,1758817408350,-250.0,0.000424,30]
[387705968,1758817408377,-152.9,0.000424,30]
[387705969,1758817408405,-250.0,0.00042408,39]
[387705970,1758817408433,-200.0,0.00042408,39]
[387705971,1758817408458,-156.587,0.00042408,39]
[387705972,1758817408484,-151.0,0.00042408,39]
[387705973,1758817408512,-350.0,0.00042408,39]
[387705974,1758817408544,-500.0,0.00042408,39]
[387705975,1758817408571,-151.0,0.00042408,39]
[387705976,1758817408597,-17940.1,0.00042408,39]
[387705977,1758817408624,-829.79673169,0.00042409,39]
[387705978,1758817408650,-250.0,0.00042439,30]
[387705979,1758817408677,-200.0,0.00042439,30]
[387705980,1758817408702,-151.0,0.00042439,30]
[387705981,1758817408727,-506.24555274,0.00042439,30]
[387705982,1758817408752,-151.00896658,0.00042439,30]
[387705983,1758817408787,-151.0,0.00042439,30]
[387705984,1758817408824,-350.0,0.00042439,30]
[387705985,1758817408866,-500.0,0.00042439,30]
[387705986,1758817408892,-205.67214787,0.00042439,30]
[387705987,1758817408919,-151.0,0.00042439,30]
[387705988,1758817408944,-17300.0,0.00042439,30]
[387705989,1758817408971,-344318.49815133,0.0004244,30]
[387705991,1758817423103,-1504347.76230594,0.0004244,30]
[387705992,1758817423131,-151.0,0.0004244,120]
[387705993,1758817423157,-151.0,0.0004244,120]
[387705994,1758817423183,-151.0,0.0004244,120]
[387705995,1758817423210,-151.0,0.0004244,120]
[387705996,1758817423237,-281.927366,0.0004244,120]
[387705997,1758817423263,-151.0,0.0004244,120]
[387705998,1758817423289,-151.0,0.0004244,120]
[387705999,1758817423316,-285.863933,0.0004244,120]
[387706000,1758817423345,-151.0,0.0004244,120]
[387706001,1758817423372,-151.0,0.0004244,120]
[387706002,1758817423398,-151.0,0.0004244,120]
[387706003,1758817423423,-151.0,0.0004244,120]
[387706004,1758817423451,-151.0,0.0004244,120]
[387706005,1758817423476,-151.0,0.0004244,120]
[387706006,1758817423502,-151.0,0.0004244,120]
[387706007,1758817423528,-153.75635,0.0004244,30]
[387706008,1758817423554,-151.0,0.0004244,120]
[387706009,1758817423581,-151.0,0.0004244,120]
[387706010,1758817423608,-151.0,0.0004244,120]
[387706011,1758817423635,-151.0,0.0004244,120]
[387706012,1758817423662,-151.0,0.0004244,120]
[387706013,1758817423690,-151.0,0.0004244,120]
[387706014,1758817423716,-151.0,0.0004244,120]
[387706015,1758817423743,-151.0,0.0004244,120]
[387706016,1758817423770,-151.0,0.0004244,120]
[387706017,1758817423796,-151.0,0.0004244,120]
[387706018,1758817423823,-151.0,0.0004244,120]
[387706019,1758817423851,-151.0,0.0004244,120]
[387706020,1758817423877,-151.0,0.0004244,120]
[387706021,1758817423903,-151.0,0.0004244,120]
[387706022,1758817423930,-151.0,0.0004244,120]
[387706023,1758817423955,-151.0,0.0004244,120]
[387706024,1758817423981,-162.06902,0.0004244,120]
[387706025,1758817424007,-164.646337,0.0004244,120]
[387706026,1758817424033,-164.646337,0.0004244,120]
[387706027,1758817424062,-151.0,0.0004244,120]
[387706028,1758817424089,-164.646337,0.0004244,120]
[387706029,1758817424116,-164.646337,0.0004244,120]
[387706030,1758817424142,-151.0,0.0004244,120]
[387706031,1758817424168,-151.0,0.0004244,120]
[387706032,1758817424194,-151.0,0.0004244,120]
[387706033,1758817424220,-151.861881,0.0004244,120]
[387706034,1758817424246,-257.350944,0.0004244,120]
[387706035,1758817424272,-151.0,0.0004244,120]
[387706036,1758817424297,-151.0,0.0004244,120]
[387706037,1758817424324,-151.0,0.0004244,120]
[387706038,1758817424351,-151.0,0.0004244,120]
[387706039,1758817424377,-151.0,0.0004244,120]
[387706040,1758817424404,-151.0,0.0004244,120]
[387706041,1758817424431,-151.0,0.0004244,120]
[387706042,1758817424458,-211.629329,0.0004244,120]
[387706043,1758817424484,-151.0,0.0004244,120]
[387706044,1758817424511,-211.629329,0.0004244,120]
[387706045,1758817424537,-152.141053,0.0004244,120]
[387706046,1758817424564,-211.629329,0.0004244,120]
[387706047,1758817424590,-211.629329,0.0004244,120]
[387706048,1758817424615,-151.0,0.0004244,120]
[387706049,1758817424641,-151.0,0.0004244,120]
[387706050,1758817424668,-151.0,0.0004244,120]
[387706051,1758817424693,-151.0,0.0004244,120]
[387706052,1758817424720,-151.0,0.0004244,120]
[387706053,1758817424746,-151.893397,0.0004244,120]
[387706054,1758817424772,-151.0,0.0004244,120]
[387706055,1758817424798,-151.0,0.0004244,120]
[387706056,1758817424824,-151.0,0.0004244,120]
[387706057,1758817424852,-151.0,0.0004244,120]
[387706058,1758817424878,-151.0,0.0004244,120]
[387706059,1758817424904,-151.0,0.0004244,120]
[387706060,1758817424933,-160.506416,0.0004244,30]
[387706061,1758817424960,-151.0,0.0004244,120]
[387706062,1758817425084,-151.0,0.0004244,120]
[387706063,1758817425113,-151.0,0.0004244,120]
[387706064,1758817425140,-151.0,0.0004244,120]
[387706065,1758817425166,-151.0,0.0004244,120]
[387706066,1758817425191,-151.0,0.0004244,120]
[387706067,1758817425218,-151.0,0.0004244,120]
[387706068,1758817425244,-151.0,0.0004244,120]
[387706069,1758817425271,-151.0,0.0004244,120]
[387706070,1758817425297,-151.0,0.0004244,120]
[387706071,1758817425324,-153.97133,0.0004244,90]
[387706072,1758817425352,-421.525848,0.0004244,120]
[387706073,1758817425380,-421.525848,0.0004244,120]
[387706074,1758817425407,-421.525848,0.0004244,120]
[387706075,1758817425435,-421.525848,0.0004244,120]
[387706076,1758817425462,-151.0,0.0004244,120]
[387706077,1758817425486,-222.166572,0.0004244,120]
[387706078,1758817425513,-272.486089,0.0004244,120]
[387706079,1758817425538,-224.664565,0.0004244,120]
[387706080,1758817425563,-500.0,0.0004244,30]
[387706081,1758817425590,-4836.92,0.00042465,120]
[387706082,1758817425617,-1007.69,0.00042465,120]
[387706083,1758817425641,-500.0,0.000425,120]
[387706084,1758817425667,-220.15,0.000426,120]
[387706085,1758817425692,-600.0,0.00042714,60]
[387706086,1758817425719,-4836.92,0.00042739,120]
[387706087,1758817425746,-1007.69,0.00042739,120]
[387706088,1758817425771,-500.0,0.00043,120]
[387706089,1758817425796,-219.0,0.00043,120]
[387706090,1758817425821,-4836.92,0.00043013,120]
[387706091,1758817425847,-1007.69,0.00043013,120]
[387706092,1758817425873,-4836.92,0.00043287,120]
[387706093,1758817425899,-1007.69,0.00043287,120]
[387706094,1758817425927,-829.79673169,0.00043481,42]
[387706095,1758817425953,-500.0,0.000435,120]
[387706096,1758817425978,-18220.29888758,0.000435,120]
[387706097,1758817426004,-4836.92,0.00043561,120]
[387706098,1758817426031,-1007.69,0.00043561,120]
[387706099,1758817426058,-1000.0,0.000438,90]
[387706100,1758817426084,-1000.0,0.000438,90]
[387706101,1758817426109,-600.0,0.0004381,60]
[387706102,1758817426138,-4836.92,0.00043835,120]
[387706103,1758817426163,-1007.69,0.00043835,120]
[387706104,1758817431091,826.641,0.00043835,30]
[387706117,1758817536126,-217.29607001,0.00019214,2]
[387706118,1758817536149,-1806.8460404,0.00019273,2]
[387706119,1758817536172,-375.0,0.00019313,2]
[387706120,1758817536199,-500.0,0.00019313,2]
[387706121,1758817536223,-610.43403234,0.00019313,2]
[387706122,1758817536245,-623.63782246,0.00019313,2]
[387706123,1758817536269,-480.0,0.00019314,2]
[387706124,1758817536293,-480.0,0.00019314,2]
[387706125,1758817536316,-480.0,0.00019314,2]
[387706126,1758817536341,-480.0,0.00019314,2]
[387706127,1758817536364,-480.0,0.00019314,2]
[387706128,1758817536385,-480.0,0.00019314,2]
[387706129,1758817536408,-480.0,0.00019314,2]
[387706130,1758817536432,-480.0,0.00019314,2]
[387706131,1758817536454,-480.0,0.00019314,2]
[387706132,1758817536477,-480.0,0.00019314,2]
[387706133,1758817536500,-480.0,0.00019314,2]
[387706134,1758817536523,-480.0,0.00019314,2]
[387706135,1758817536545,-480.0,0.00019314,2]
[387706136,1758817536567,-480.0,0.00019314,2]
[387706137,1758817536590,-480.0,0.00019314,2]
[387706138,1758817536612,-480.0,0.00019314,2]
[387706139,1758817536633,-480.0,0.00019314,2]
[387706140,1758817536654,-480.0,0.00019314,2]
[387706141,1758817536676,-480.0,0.00019314,2]
[387706142,1758817536697,-480.0,0.00019314,2]
[387706143,1758817536719,-298.16864275,0.00019314,2]
[387706144,1758817536740,-480.0,0.00019314,2]
[387706145,1758817536761,-480.0,0.00019314,2]
[387706146,1758817536783,-401.76764544,0.00019314,2]
[387706147,1758817536806,-480.0,0.00019314,2]
[387706148,1758817536829,-480.0,0.00019314,2]
[387706149,1758817536851,-482.42365811,0.00019314,2]
[387706150,1758817536872,-480.0,0.00019314,2]
[387706151,1758817536894,-480.0,0.00019314,2]
[387706152,1758817536917,-480.0,0.00019314,2]
[387706153,1758817536941,-480.0,0.00019314,2]
[387706154,1758817536963,-480.0,0.00019314,2]
[387706155,1758817536985,-480.0,0.00019314,2]
[387706156,1758817537006,-480.0,0.00019314,2]
[387706157,1758817537028,-327.26679449,0.00019314,2]
[387706158,1758817537051,-480.0,0.00019314,2]
[387706159,1758817537073,-480.0,0.00019314,2]
[387706160,1758817537098,-500.0,0.00019314,2]
[387706161,1758817537123,-480.0,0.00019314,2]
[387706162,1758817537145,-480.0,0.00019314,2]
[387706163,1758817537167,-480.0,0.00019314,2]
[387706164,1758817537191,-480.0,0.00019314,2]
[387706165,1758817537212,-480.0,0.00019314,2]
[387706166,1758817537234,-480.0,0.00019314,2]
[387706167,1758817537258,-500.0,0.00019314,2]
[387706168,1758817537280,-554.92,0.00019314,2]
[387706169,1758817537305,-480.0,0.00019314,2]
[387706170,1758817537328,-480.0,0.00019314,2]
[387706171,1758817537352,-480.0,0.00019314,2]
[387706172,1758817537376,-480.0,0.00019314,2]
[387706173,1758817537399,-480.0,0.00019314,2]
[387706174,1758817537420,-480.0,0.00019314,2]
[387706175,1758817537443,-480.0,0.00019314,2]
[387706176,1758817537467,-490.47283069,0.00019314,2]
[387706177,1758817537489,-480.0,0.00019314,2]
[387706178,1758817537511,-480.0,0.00019314,2]
[387706179,1758817537531,-480.0,0.00019314,2]
[387706180,1758817537553,-480.0,0.00019314,2]
[387706181,1758817537574,-480.0,0.00019314,2]
[387706182,1758817537596,-480.0,0.00019314,2]
[387706183,1758817537618,-480.0,0.00019314,2]
[387706184,1758817537640,-480.0,0.00019314,2]
[387706185,1758817537761,-480.0,0.00019314,2]
[387706186,1758817537782,-480.0,0.00019314,2]
[387706187,1758817537804,-599.79985161,0.00019314,2]
[387706188,1758817537827,-500.0,0.00019314,2]
[387706189,1758817537849,-480.0,0.00019314,2]
[387706190,1758817537871,-480.0,0.00019314,2]
[387706191,1758817537892,-480.0,0.00019314,2]
[387706192,1758817537912,-480.0,0.00019314,2]
[387706193,1758817537936,-480.0,0.00019314,2]
[387706194,1758817537960,-480.0,0.00019314,2]
[387706195,1758817537982,-480.0,0.00019314,2]
[387706196,1758817538003,-480.0,0.00019314,2]
[387706197,1758817538027,-480.0,0.00019314,2]
[387706198,1758817538049,-589.68869546,0.00019314,2]
[387706199,1758817538070,-480.0,0.00019314,2]
[387706200,1758817538096,-480.0,0.00019314,2]
[387706201,1758817538120,-480.0,0.00019314,2]
[387706202,1758817538142,-480.0,0.00019314,2]
[387706203,1758817538165,-480.0,0.00019314,2]
[387706204,1758817538190,-580.2482847,0.00019314,2]
[387706205,1758817538216,-480.0,0.00019314,2]
[387706206,1758817538237,-480.78675954,0.00019314,2]
[387706207,1758817538262,-480.0,0.00019314,2]
[387706208,1758817538284,-480.0,0.00019314,2]
[387706209,1758817538308,-480.0,0.00019314,2]
[387706210,1758817538329,-480.0,0.00019314,2]
[387706211,1758817538352,-480.0,0.00019314,2]
[387706212,1758817538374,-480.0,0.00019314,2]
[387706213,1758817538397,-480.0,0.00019314,2]
[387706214,1758817538419,-608.09987048,0.00019314,2]
[387706215,1758817538441,-480.0,0.00019314,2]
[387706216,1758817538465,-480.0,0.00019314,2]
[387706217,1758817538488,-480.0,0.00019314,2]
[387706218,1758817538511,-480.0,0.00019314,2]
[387706219,1758817538533,-480.0,0.00019314,2]
[387706220,1758817538556,-480.0,0.00019314,2]
[387706221,1758817538577,-480.0,0.00019314,2]
[387706222,1758817538599,-480.0,0.00019314,2]
[387706223,1758817538619,-480.0,0.00019314,2]
[387706224,1758817538641,-480.0,0.00019314,2]
[387706225,1758817538664,-626.02041284,0.00019314,2]
[387706226,1758817538686,-480.0,0.00019314,2]
[387706227,1758817538710,-480.0,0.00019314,2]
[387706228,1758817538733,-480.0,0.00019314,2]
[387706229,1758817538754,-480.0,0.00019314,2]
[387706230,1758817538788,-480.0,0.00019314,2]
[387706231,1758817538810,-480.0,0.00019314,2]
[387706232,1758817538831,-480.0,0.00019314,2]
[387706233,1758817538853,-480.0,0.00019315,2]
[387706234,1758817538874,-480.0,0.00019315,2]
[387706235,1758817538896,-467.14929958,0.00019315,2]
[387706236,1758817538916,-237.12204867,0.00019315,2]
[387706237,1758817538940,-480.0,0.00019315,2]
[387706238,1758817538963,-480.0,0.00019315,2]
[387706239,1758817538984,-480.0,0.00019315,2]
[387706240,1758817539007,-480.0,0.00019315,2]
[387706241,1758817539028,-480.0,0.00019315,2]
[387706242,1758817539051,-480.0,0.00019315,2]
[387706243,1758817539075,-480.0,0.00019315,2]
[387706244,1758817539102,-480.0,0.00019315,2]
[387706245,1758817539124,-480.0,0.00019315,2]
[387706246,1758817539147,-802.34,0.00019342,3]
[387706247,1758817539170,-401.17,0.00019342,3]
[387706248,1758817539192,-200.58,0.00019342,3]
[387706249,1758817539214,-601.79,0.00019342,3]
[387706250,1758817539236,-480.0,0.00019347,2]
[387706251,1758817539258,-480.0,0.00019347,2]
[387706252,1758817539280,-480.0,0.00019347,2]
[387706253,1758817539301,-480.0,0.00019347,2]
[387706254,1758817539323,-480.0,0.00019347,2]
[387706255,1758817539345,-480.0,0.00019347,2]
[387706256,1758817539366,-480.0,0.00019347,2]
[387706257,1758817539389,-500.0,0.00019347,2]
[387706258,1758817539411,-480.0,0.00019347,2]
[387706259,1758817539433,-500.0,0.00019347,2]
[387706260,1758817539455,-482.55143365,0.00019348,2]
[387706261,1758817539476,-480.0,0.00019348,2]
[387706262,1758817539498,-480.0,0.00019348,2]
[387706263,1758817539519,-482.65890024,0.00019348,2]
[387706264,1758817539540,-480.0,0.00019348,2]
[387706265,1758817539562,-480.0,0.00019348,2]
[387706266,1758817539583,-267.36330729,0.00019348,2]
[387706267,1758817539605,-480.0,0.00019348,2]
[387706268,1758817539627,-480.0,0.00019348,2]
[387706269,1758817539650,-480.0,0.00019348,2]
[387706270,1758817539672,-480.0,0.00019348,2]
[387706271,1758817539693,-480.0,0.00019348,2]
[387706272,1758817539715,-480.0,0.00019348,2]
[387706273,1758817539740,-480.0,0.00019348,2]
[387706274,1758817539761,-480.0,0.00019348,2]
[387706275,1758817539783,-480.0,0.00019348,2]
[387706276,1758817539805,-480.0,0.00019348,2]
[387706277,1758817539826,-480.0,0.00019348,2]
[387706278,1758817539847,-480.0,0.00019348,2]
[387706279,1758817539870,-480.0,0.00019348,2]
[387706280,1758817539893,-480.0,0.00019348,2]
[387706281,1758817539916,-480.0,0.00019348,2]
[387706282,1758817539940,-480.0,0.00019348,2]
[387706283,1758817539962,-480.0,0.00019348,2]
[387706284,1758817539983,-480.0,0.00019348,2]
[387706285,1758817540006,-480.0,0.00019348,2]
[387706286,1758817540029,-277.19870755,0.00019348,2]
[387706287,1758817540051,-287.43382968,0.00019348,2]
[387706288,1758817540156,-480.0,0.00019348,2]
[387706289,1758817540182,-480.0,0.00019348,2]
[387706290,1758817540205,-480.0,0.00019348,2]
[387706291,1758817540228,-480.0,0.00019348,2]
[387706292,1758817540252,-480.0,0.00019348,2]
[387706293,1758817540276,-480.0,0.00019348,2]
[387706294,1758817540299,-480.0,0.00019348,2]
[387706295,1758817540323,-480.0,0.00019348,2]
[387706296,1758817540346,-480.0,0.00019348,2]
[387706297,1758817540369,-480.0,0.00019348,2]
[387706298,1758817540392,-480.0,0.00019348,2]
[387706299,1758817540415,-480.0,0.00019348,2]
[387706300,1758817540437,-480.0,0.00019348,2]
[387706301,1758817540459,-480.0,0.00019348,2]
[387706302,1758817540481,-481.36446074,0.00019348,2]
[387706303,1758817540503,-480.0,0.00019348,2]
[387706304,1758817540525,-480.0,0.00019348,2]
[387706305,1758817540547,-480.0,0.00019348,2]
[387706306,1758817540569,-480.0,0.00019348,2]
[387706307,1758817540590,-480.0,0.00019348,2]
[387706308,1758817540611,-532.56399018,0.00019348,2]
[387706309,1758817540633,-500.0,0.00019348,2]
[387706310,1758817540655,-500.0,0.00019348,2]
[387706311,1758817540676,-480.0,0.00019348,2]
[387706312,1758817540699,-480.0,0.00019348,2]
[387706313,1758817540720,-480.0,0.00019348,2]
[387706314,1758817540742,-480.0,0.00019348,2]
[387706315,1758817540763,-480.0,0.00019348,2]
[387706316,1758817540784,-487.03702914,0.00019348,2]
[387706317,1758817540804,-480.0,0.00019348,2]
[387706318,1758817540826,-480.0,0.00019348,2]
[387706319,1758817540847,-485.5880643,0.00019348,2]
[387706320,1758817540868,-480.0,0.00019348,2]
[387706321,1758817540890,-480.0,0.00019348,2]
[387706322,1758817540911,-480.0,0.00019348,2]
[387706323,1758817540934,-480.0,0.00019348,2]
[387706324,1758817540955,-480.0,0.00019348,2]
[387706325,1758817540977,-480.0,0.00019348,2]
[387706326,1758817540998,-480.0,0.00019348,2]
[387706327,1758817541020,-480.0,0.00019348,2]
[387706328,1758817541041,-480.0,0.00019348,2]
[387706329,1758817541066,-480.0,0.00019348,2]
[387706330,1758817541091,-500.0,0.0001935,2]
[387706331,1758817541116,-223.88334147,0.0001935,2]
[387706332,1758817541139,-500.0,0.00019351,2]
[387706333,1758817541163,-521.04,0.00019351,2]
[387706334,1758817541185,-56615.29461219,0.00019352,2]
[387706335,1758817568430,169.0,0.00024,120]
[387706337,1758817646094,-156.31756812,0.00019273,2]
[387706338,1758817646119,-1204.56402694,0.00019273,2]
[387706339,1758817646140,-300.0,0.00019312,2]
[387706340,1758817646160,-480.0,0.00019313,2]
[387706341,1758817646181,-461.91520265,0.00019313,2]
[387706342,1758817646204,-480.0,0.00019313,2]
[387706343,1758817646225,-480.0,0.00019313,2]
[387706344,1758817646246,-480.0,0.00019314,2]
[387706345,1758817646267,-480.0,0.00019314,2]
[387706346,1758817646288,-480.0,0.00019314,2]
[387706347,1758817646311,-8470.3693896,0.00019314,2]
[387706348,1758817646332,-480.0,0.00019314,2]
[387706349,1758817646354,-480.0,0.00019314,2]
[387706350,1758817646375,-480.0,0.00019314,2]
[387706351,1758817646395,-1992.34,0.00019314,2]
[387706352,1758817646416,-480.0,0.00019314,2]
[387706353,1758817646442,-480.0,0.00019314,2]
[387706354,1758817646467,-480.0,0.00019314,2]
[387706355,1758817646490,-480.0,0.00019314,2]
[387706356,1758817646512,-480.0,0.00019314,2]
[387706357,1758817646533,-480.0,0.00019314,2]
[387706358,1758817646556,-480.0,0.00019314,2]
[387706359,1758817646578,-480.0,0.00019314,2]
[387706360,1758817646600,-480.0,0.00019314,2]
[387706361,1758817646621,-480.0,0.00019314,2]
[387706362,1758817646643,-480.0,0.00019314,2]
[387706363,1758817646668,-480.0,0.00019314,2]
[387706364,1758817646689,-484.64621898,0.00019314,2]
[387706365,1758817646711,-480.0,0.00019314,2]
[387706366,1758817646735,-480.0,0.00019314,2]
[387706367,1758817646758,-480.0,0.00019314,2]
[387706368,1758817646779,-480.0,0.00019314,2]
[387706369,1758817646802,-480.0,0.00019314,2]
[387706370,1758817646822,-480.0,0.00019314,2]
[387706371,1758817646844,-480.0,0.00019314,2]
[387706372,1758817646865,-480.0,0.00019314,2]
[387706373,1758817646887,-480.0,0.00019314,2]
[387706374,1758817646910,-480.0,0.00019314,2]
[387706375,1758817646932,-480.0,0.00019314,2]
[387706376,1758817646953,-480.0,0.00019314,2]
[387706377,1758817646980,-480.0,0.00019314,2]
[387706378,1758817647013,-480.0,0.00019314,2]
[387706379,1758817647038,-480.0,0.00019314,2]
[387706380,1758817647067,-480.0,0.00019314,2]
[387706381,1758817647094,-480.0,0.00019314,2]
[387706382,1758817647123,-480.0,0.00019314,2]
[387706383,1758817647149,-480.0,0.00019314,2]
[387706384,1758817647180,-480.0,0.00019314,2]
[387706385,1758817647210,-480.0,0.00019314,2]
[387706386,1758817647235,-480.0,0.00019314,2]
[387706387,1758817647271,-480.0,0.00019314,2]
[387706388,1758817647299,-620.5,0.00019315,2]
[387706389,1758817647325,-480.0,0.00019348,2]
[387706390,1758817647356,-500.0,0.0001935,2]
[387706391,1758817647388,-500.0,0.0001935,2]
[387706392,1758817647418,-250.0,0.0001935,2]
[387706393,1758817647450,-500.0,0.00019351,2]
[387706394,1758817647478,-211.73339941,0.00019351,2]
[387706395,1758817647507,-500.0,0.00019351,2]
[387706396,1758817647534,-423.94003577,0.00019351,2]
[387706397,1758817647565,-500.0,0.00019351,2]
[387706398,1758817647593,-500.0,0.00019351,2]
[387706399,1758817647620,-500.0,0.00019351,2]
[387706400,1758817647648,-330.52766767,0.00019351,2]
[387706401,1758817647674,-500.0,0.00019351,2]
[387706402,1758817647699,-500.0,0.00019351,2]
[387706403,1758817647728,-500.0,0.00019351,2]
[387706404,1758817647754,-500.0,0.00019351,2]
[387706405,1758817647781,-500.0,0.00019351,2]
[387706406,1758817647807,-500.0,0.00019351,2]
[387706407,1758817647834,-500.0,0.00019351,2]
[387706408,1758817647861,-500.0,0.00019351,2]
[387706409,1758817647888,-500.0,0.00019351,2]
[387706410,1758817647917,-500.0,0.00019351,2]
[387706411,1758817647944,-450.0,0.00019351,2]
[387706412,1758817647970,-500.0,0.00019351,2]
[387706413,1758817647994,-313384.70538781,0.00019352,2]
[387706414,1758817648014,-500.0,0.00019373,2]
[387706415,1758817648034,-28218.78497257,0.00019588,2]
[387706416,1758817648055,-491.33608497,0.00019588,2]
[387706417,1758817648077,-480.0,0.00019588,2]